Cogmind - Beta 16 @@@ ROGUE MODE // 2025.11.17 @ 15:18:52 Player: celerysam Result: Destroyed by H-77 Assassin with Coil Gun Performance ------------- Evolutions (7) 3500 Regions Visited (15) 3000 Robots Destroyed (106) 530 Value Destroyed (2920) 2920 Prototype IDs (16) 320 Alien Tech Used (0) 0 Bonus (1198) 1198 TOTAL SCORE: 11468 Bonus ------- Follower Combat Kills 198 Met Warlord at Base 500 MAIN.C Attacked Warlord 500 Cogmind --------- Core Integrity 0/1300 Matter 250/300 Energy 86/100 System Corruption 1% Temperature Cool (-200) Movement Core (50) Location -3/Research Parts ------- > --- POWER (2) -------- (None) > --- PROPULSION (7) --- (None) > --- UTILITY (9) ------ Advanced Cryofiber Web > --- WEAPON (3) ------- (None) > --- INVENTORY (5) ---- ECM Suite Dimensional Node Initializer Quantum Rifle Advanced Datajack Force Lance Peak State ------------ > --- POWER ------------ Fission Core Light Antimatter Reactor > --- PROPULSION ------- Surge Thruster Surge Thruster Xenon Bombardment Thruster Improved Cesium-ion Thruster Cooled Cesium-ion Thruster Q-thruster > --- UTILITY ---------- Improved Cooling System Energy Well Advanced Weight Redist. System Improved Transmission Jammer Jamming Amplifier Improved Propulsion Shielding Improved Hacking Suite System Shield > --- WEAPON ----------- Precision Beam Rifle Quantum Rifle Plasma Lance > --- INVENTORY -------- Advanced ECM Suite Makeshift Cloaking Device Improved Light Armor Plating Dimensional Node Initializer Advanced Datajack [Rating: 98] Favorites ----------- Power Improved Deuterium Engine Engine Improved Deuterium Engine Power Core Light Nuclear Core Reactor Light Antimatter Reactor Propulsion Surge Thruster Treads Improved Treads Leg Improved Aluminum Leg Wheel Compact Wheel Hover Unit Gyrokinetic Inverter Flight Unit Surge Thruster Utility Hacking Suite Device Advanced Weight Redist. System Storage Small Storage Unit Processor Jamming Amplifier Hackware Hacking Suite Protection Improved Light Armor Plating Weapon Precision Beam Rifle Energy Gun Precision Beam Rifle Energy Cannon Beam Cannon Ballistic Gun Heavy Assault Rifle Ballistic Cannon Light Cannon Launcher Hellfire Missile Launcher Special Weapon Improved Remote Datajack Slashing Weapon Power Sword Piercing Weapon Plasma Lance Special Melee Weapon Datajack Build | -11 -10 -9 -8 -7 -6 -5 -5 -5 -5 -4 -4 -4 -4 -4 -3 ------- Run | Yrd Mat Mat Mat Fac Fac Fac Upp Upp War Pro Fac Ext Cet Arc Res Slots Evolved 14 | . . 2 2 2 2 2 . . . . 2 . . . 2 Power 1 | . . . . 1 . . . . . . . . . . . Propulsion 5 | . . 1 1 . 1 . . . . . 1 . . . 1 Utility 7 | . . 1 1 1 1 2 . . . . . . . . 1 Weapon 1 | . . . . . . . . . . . 1 . . . . Parts Attached 120 | 4 13 23 25 8 12 3 1 . 6 2 3 5 2 . 13 Power 17 | . 3 2 5 1 3 . . . . . . 2 . . 1 Engine 11 | . 3 2 3 1 1 . . . . . . . . . 1 Core 4 | . . . 2 . 1 . . . . . . 1 . . . Reactor 2 | . . . . . 1 . . . . . . 1 . . . Propulsion 40 | 2 4 13 9 2 3 . . . . 1 1 1 . . 4 Treads 10 | . 2 4 4 . . . . . . . . . . . . Leg 7 | 2 . 5 . . . . . . . . . . . . . Wheel 6 | . 2 4 . . . . . . . . . . . . . Hover 4 | . . . . . . . . . . . 1 . . . 3 Flight 13 | . . . 5 2 3 . . . . 1 . 1 . . 1 Utility 39 | 1 1 4 7 4 5 3 1 . 4 1 1 1 1 . 5 Device 20 | . . 1 3 3 5 1 . . . 1 1 . . . 5 Storage 4 | 1 . 1 1 . . 1 . . . . . . . . . Processor 1 | . . . . . . 1 . . . . . . . . . Hackware 4 | . 1 . 1 . . . 1 . . . . 1 . . . Protection 10 | . . 2 2 1 . . . . 4 . . . 1 . . Artifact . | . . . . . . . . . . . . . . . . Weapon 24 | 1 5 4 4 1 1 . . . 2 . 1 1 1 . 3 Energy Gun 8 | 1 1 2 2 . . . . . . . . 1 . . 1 Energy Cannon 2 | . 1 . . . . . . . 1 . . . . . . Ballistic Gun 1 | . . 1 . . . . . . . . . . . . . Ballistic Cannon 4 | . 2 1 1 . . . . . . . . . . . . Launcher 1 | . . . . . . . . . . . . . . . 1 Special Weapon 1 | . . . . . . . . . 1 . . . . . . Impact Weapon . | . . . . . . . . . . . . . . . . Slashing Weapon 3 | . . . 1 1 1 . . . . . . . . . . Piercing Weapon 2 | . . . . . . . . . . . 1 . . . 1 Special Melee Weapon 2 | . 1 . . . . . . . . . . . 1 . . Unidentified Prototypes 12 | . . 2 2 . 3 . . . 2 . 1 . . . 2 Parts Lost 42 | . 2 3 9 . . 1 . . . 2 . 5 3 2 15 Power 6 | . . . 2 . . . . . . . . 2 . . 2 Propulsion 14 | . . 2 2 . . . . . . 1 . . 3 . 6 Utility 13 | . . . 2 . . 1 . . . 1 . 2 . 2 5 Weapon 9 | . 2 1 3 . . . . . . . . 1 . . 2 Highest Loss Streak 8 | . 1 1 5 . . 1 . . . 1 . 3 3 5 8 To Critical Strikes . | . . . . . . . . . . . . . . . . Average Backups 7 | 5 7 8 13 5 4 3 3 5 5 4 4 5 4 5 4 Power . | 1 1 1 1 . . . . . . . . . . . . Propulsion 1 | 2 2 1 4 1 . . . 1 1 . . . . . . Utility 2 | . . 1 3 1 3 3 3 3 2 3 3 3 2 3 1 Weapon 1 | 1 2 2 2 1 . . . . . . . . . . . Tool/Special . | . . . . . . . . . . . . . . . . Unused Backups 27 | . 2 8 9 1 2 . . 1 . . 2 . . . 2 Power 3 | . 1 2 . . . . . . . . . . . . . Propulsion 3 | . . . 1 . 1 . . 1 . . . . . . . Utility 8 | . . . 5 1 . . . . . . 1 . . . 1 Weapon 7 | . 1 4 1 . . . . . . . 1 . . . . Tool/Special 6 | . . 2 2 . 1 . . . . . . . . . 1 Average Slot Usage (%) 92 | . 92 96 92 95 99 95 96 100 100 100 92 94 83 64 44 Engine 9 | . 13 11 7 3 8 11 11 11 11 11 10 3 . . . Core 1 | . . . . 8 3 . . . . . . 3 5 5 1 Treads 5 | . 12 4 21 . . . . . . . . . . . . Leg 5 | . 2 17 6 . . . . . . . . . . . . Wheel 4 | . 12 11 . . . . . . . . . . . . . Flight 12 | . . . 3 30 33 29 29 29 29 29 24 27 26 15 7 Device 10 | . . . 8 13 19 23 23 23 23 22 17 18 15 14 11 Storage 6 | . 14 11 8 . . . . . . . . 1 4 . 2 Processor 1 | . . . . . . 4 5 5 5 5 5 5 5 5 2 Hackware 9 | . 8 11 9 15 13 7 7 11 11 11 10 7 10 8 2 Protection 5 | . . 8 8 7 6 5 5 5 5 5 8 4 5 5 1 Energy Gun 6 | . 8 5 9 7 6 5 5 5 4 5 5 6 5 5 1 Energy Cannon 2 | . 8 4 . . . . . . . . . . . . . Ballistic Cannon 4 | . 10 8 7 . . . . . . . . . . . . Slashing Weapon 2 | . . . . 7 6 5 5 5 5 5 5 2 . . . Peak Build Rating 98 | 4 9 22 37 46 63 71 71 72 77 74 91 98 90 67 90 Average Rating 38 | 2 7 17 24 43 56 67 68 71 72 72 80 89 79 63 49 On Entrance 51 | . 4 9 20 37 45 62 67 71 72 72 72 91 80 67 58 Avg Prop Armor Cover (%) 7 | . 7 8 7 . . . . . . . . . 5 . 7 Naked Turns . | . . . . . . . . . . . . . . . . Heaviest Build 61 | 7 16 32 61 25 33 32 32 32 33 32 35 43 30 25 31 Greatest Support 92 | 20 40 42 92 29 38 36 36 38 34 39 35 47 34 29 37 Greatest Overweight (x) 5 | . 5 2 2 . . . . . . . . . . . 1 Average Overweight (x) . | . . . . . . . . . . . . . . . . Largest Inventory Capacity 20 | 8 8 10 20 5 5 5 5 5 5 5 5 5 5 5 5 Average Capacity 7 | 6 8 8 15 5 5 5 5 5 5 5 5 5 5 5 5 Most Carried 20 | 8 8 10 20 5 5 4 5 5 5 5 5 5 5 5 5 Average Carried 7 | 5 7 8 13 4 4 2 3 4 4 4 4 4 4 5 4 Final Capacity 10 | 8 8 10 5 5 5 5 5 5 5 5 5 5 5 5 5 Final Carried 10 | 8 8 10 5 5 5 3 5 5 5 5 5 5 5 5 5 Class Distribution -------------------- 52% | Mutant 23% | Scientist-Sprinter 10% | Hacker-Sprinter 3% | Scavenger-Mutant Dominant Class ---------------- Mutant | -10/Materials Mutant | -9/Materials Mutant | -8/Materials Scavenger-Sprinter | -7/Factory Hacker-Sprinter | -6/Factory Scientist-Sprinter | -5/Factory Scientist-Sprinter | -5/Upper Caves Scientist-Sprinter | -5/Upper Caves Scientist-Sprinter | -5/Warlord Scientist-Sprinter | -4/Proximity Caves Scientist-Sprinter | -4/Factory Hacker-Sprinter | -4/Extension Hacker-Sprinter | -4/Cetus Sprinter | -4/Archives Infiltrator-Mutant | -3/Research Resources | -11 -10 -9 -8 -7 -6 -5 -5 -5 -5 -4 -4 -4 -4 -4 -3 ----------- Run | Yrd Mat Mat Mat Fac Fac Fac Upp Upp War Pro Fac Ext Cet Arc Res Matter Collected 2209 | 240 246 458 625 71 170 74 10 . . 152 20 103 . . 40 Remotely . | . . . . . . . . . . . . . . . . Salvage Created 3633 | . 367 936 940 236 289 136 . . . 6 . 538 . 99 86 Parts 232 | . 28 76 56 8 18 3 . . . 1 . 30 . 2 10 Haulers Intercepted 12 | . 2 4 2 1 2 1 . . . . . . . . . Recyclers Shooed 2 | . 1 . 1 . . . . . . . . . . . . Parts Field Recycled . | . . . . . . . . . . . . . . . . Retrieved Matter . | . . . . . . . . . . . . . . . . Parts Self-Destructed 6 | . . . . . . . . 3 . 3 . . . . . Prevented 4 | . . . . . . . . 4 . . . . . . . Parts Restored . | . . . . . . . . . . . . . . . . Kills | -11 -10 -9 -8 -7 -6 -5 -5 -5 -5 -4 -4 -4 -4 -4 -3 ------- Run | Yrd Mat Mat Mat Fac Fac Fac Upp Upp War Pro Fac Ext Cet Arc Res Combat Hostiles Destroyed 73 | . 9 22 26 2 3 . . . . 1 . 6 . 1 3 Melee 16 | . . . 1 1 3 . . . . 1 . 6 . 1 3 Guns 12 | . 1 . 10 1 . . . . . . . . . . . Cannons 44 | . 8 22 14 . . . . . . . . . . . . Classes Destroyed 14 | . 6 4 2 . . . . . . 1 . . . . 1 Worker 2 | . . 1 1 . . . . . . . . . . . . Builder 4 | . . 2 2 . . . . . . . . . . . . Hauler 12 | . 2 4 2 1 2 1 . . . . . . . . . Recycler 2 | . 1 . 1 . . . . . . . . . . . . Operator 1 | . 1 . . . . . . . . . . . . . . Drone 1 | . . . . . . . . . . 1 . . . . . Watcher 12 | . 3 4 . 1 1 1 . . . . . 2 . . . Swarmer 27 | . 8 8 8 . 3 . . . . . . . . . . Cutter 3 | . . . . . . . . . . . . . . . 3 Grunt 21 | . 1 6 12 . . . . . . . . 2 . . . Brawler 1 | . . 1 . . . . . . . . . . . . . Duelist 1 | . . . 1 . . . . . . . . . . . . Sentry 17 | . . 7 3 2 . . . . . . . 4 . 1 . Specialist 2 | . . . 2 . . . . . . . . . . . . Best Kill Streak 10 | . 5 7 10 3 2 1 . . . 1 . 5 . 1 3 Combat Bots Only 9 | . 5 5 9 1 2 . . . . 1 . 3 . 1 3 Max Kills in Single Turn 2 | . 2 2 2 1 1 1 . . . 1 . 1 . 1 1 Gunslinging . | . . . . . . . . . . . . . . . . Exploded . | . . . . . . . . . . . . . . . . Melee 1 | . . . 1 1 1 . . . . 1 . 1 . 1 1 Uniques/NPCs Destroyed . | . . . . . . . . . . . . . . . . Combat | -11 -10 -9 -8 -7 -6 -5 -5 -5 -5 -4 -4 -4 -4 -4 -3 -------- Run | Yrd Mat Mat Mat Fac Fac Fac Upp Upp War Pro Fac Ext Cet Arc Res Hostile Shots Fired 748 | . 70 113 220 37 32 13 2 2 2 24 . 64 10 24 135 Missed 318 | . 23 32 84 21 18 10 2 . 1 15 . 34 4 12 62 Hits 430 | . 47 81 136 16 14 3 . 2 1 9 . 30 6 12 73 Melee 20 | . . . 2 . . . . . . . . 4 . . 14 Projectile 410 | . 47 81 134 16 14 3 . 2 1 9 . 26 6 12 59 AOE 2 | . . . . . . . . . . . . . . . 2 Critical Strikes 25 | . 1 3 6 . . . . . . 1 . 3 2 . 9 Actively Blocked 1 | . . . . . . . . . . . . 1 . . . Damage Taken 6776 | . 427 806 1806 125 197 61 . 52 7 138 . 643 156 320 2038 Core 2021 | . 68 176 175 5 45 . . 28 . . . 220 . . 1304 Absorbed by Shields 94 | . . . . . . . . . 7 . . 87 . . . Redirected to Shielding 100 | . . . . . . . . . . . . 100 . . . Regen/Repaired (Parts) 101 | . . . . . . . . . 39 . 62 . . . . Core Remaining (%) 83 | 100 72 56 68 99 94 . . . . 97 . . . 80 . Volleys Fired 204 | . 28 94 64 5 . . . . 7 . . 4 2 . . Largest 2 | . 2 2 2 1 . . . . 1 . . 1 1 . . Hottest 102 | . 90 98 102 61 . . . . 61 . . 61 61 . . Shots Fired 360 | . 49 173 120 5 . . . . 7 . . 4 2 . . Gun 126 | . 20 34 60 5 . . . . 1 . . 4 2 . . Cannon 228 | . 29 139 60 . . . . . . . . . . . . Launcher . | . . . . . . . . . . . . . . . . Special 6 | . . . . . . . . . 6 . . . . . . Kinetic 172 | . 19 93 60 . . . . . . . . . . . . Thermal 154 | . 10 80 52 5 . . . . 1 . . 4 2 . . Explosive . | . . . . . . . . . . . . . . . . Electromagnetic 28 | . 20 . 8 . . . . . . . . . . . . Robot Hit Streak 16 | . 5 16 9 9 . . . . 15 . . 1 2 . . Robot Miss Streak 11 | . 4 11 9 . . . . . . . . 3 . . . Penetration Max . | . . . . . . . . . . . . . . . . Secondary Targets . | . . . . . . . . . . . . . . . . Shots Hit Robots 297 | . 24 96 105 12 14 10 . . 6 1 . 18 1 4 6 Core Hits 219 | . 17 53 114 8 6 1 . . . . . 13 . 3 4 Critical Kills . | . . . . . . . . . . . . . . . . Critical Parts Destroyed . | . . . . . . . . . . . . . . . . Critical Strikes 15 | . . 3 4 1 . 1 . . . . . 4 . 2 . Burn 1 | . . . . . . . . . . . . 1 . . . Blast 7 | . . 3 4 . . . . . . . . . . . . Sever 2 | . . . . 1 . 1 . . . . . . . . . Impale 5 | . . . . . . . . . . . . 3 . 2 . Melee Attacks 240 | . . . 4 8 48 18 5 22 6 52 10 34 1 9 23 Impact . | . . . . . . . . . . . . . . . . Slashing 173 | . . . 4 8 48 18 5 22 6 52 5 5 . . . Piercing 67 | . . . . . . . . . . . 5 29 1 9 23 Sneak Attacks 8 | . . . 1 2 2 1 . . . . . 2 . . . Combat Hostiles 2 | . . . . . . . . . . . . 2 . . . Follow-up Attacks 2 | . . . . . . . . . . . . 2 . . . Damage Inflicted 7397 | . 440 1702 1939 405 739 525 . . . 67 . 1116 16 184 264 Guns 1369 | . 156 239 823 83 . . . . . . . 52 16 . . Cannons 2759 | . 284 1463 1012 . . . . . . . . . . . . Explosions . | . . . . . . . . . . . . . . . . Melee 3269 | . . . 104 322 739 525 . . . 67 . 1064 . 184 264 Ramming . | . . . . . . . . . . . . . . . . Kinetic 2153 | . 214 927 1012 . . . . . . . . . . . . Thermal 1682 | . 70 775 686 83 . . . . . . . 52 16 . . Explosive . | . . . . . . . . . . . . . . . . Electromagnetic 293 | . 156 . 137 . . . . . . . . . . . . Impact . | . . . . . . . . . . . . . . . . Slashing 1848 | . . . 104 322 739 525 . . . 67 . 91 . . . Piercing 1421 | . . . . . . . . . . . . 973 . 184 264 Highest Corruption 4 | . . 4 . . . 1 1 1 1 . . . . . 1 Average Corruption 2 | . . 3 . . . 1 1 1 1 . . . . . 1 Corruption Purged . | . . . . . . . . . . . . . . . . Corruption Blocked . | . . . . . . . . . . . . . . . . Effects 15 | . . 13 . . . 1 . . 1 . . . . . . Matter Fused 1 | . . 1 . . . . . . . . . . . . . Heat Flow Errors 2 | . . 2 . . . . . . . . . . . . . Energy Discharges 4 | . . 3 . . . 1 . . . . . . . . . Data Loss (minor) 4 | . . 3 . . . . . . 1 . . . . . . Data Loss (major) 1 | . . 1 . . . . . . . . . . . . . Misfires 2 | . . 2 . . . . . . . . . . . . . Weapon Failures 1 | . . 1 . . . . . . . . . . . . . Overload Shots . | . . . . . . . . . . . . . . . . Overflow Damage 256 | . . 25 . 32 54 62 . . . 37 . 46 . . . Projectiles 25 | . . 25 . . . . . . . . . . . . . Explosions . | . . . . . . . . . . . . . . . . Melee 231 | . . . . 32 54 62 . . . 37 . 46 . . . Knockbacks 30 | . 1 7 22 . . . . . . . . . . . . Impact . | . . . . . . . . . . . . . . . . Kinetic 29 | . 1 6 22 . . . . . . . . . . . . Secondary 1 | . . 1 . . . . . . . . . . . . . Self-Inflicted Damage . | . . . . . . . . . . . . . . . . Shots . | . . . . . . . . . . . . . . . . Rammed . | . . . . . . . . . . . . . . . . Targets Rammed . | . . . . . . . . . . . . . . . . Kicked . | . . . . . . . . . . . . . . . . Crushed . | . . . . . . . . . . . . . . . . Highest Temperature 425 | . 110 425 373 9 . . . 4 . 18 . 7 . . . Average Temperature 78 | . 27 85 108 4 . . . 4 . 18 . 7 . . . Received Heat Transfer 1260 | . 24 189 747 42 6 . . 9 . 18 . 105 9 18 93 Effects 7 | . . 7 . . . . . . . . . . . . . Shutdowns 1 | . . 1 . . . . . . . . . . . . . Energy Bleed 1 | . . 1 . . . . . . . . . . . . . Damage (minor) 1 | . . 1 . . . . . . . . . . . . . Damage (major) 4 | . . 4 . . . . . . . . . . . . . Siege Activations . | . . . . . . . . . . . . . . . . Martial Activations . | . . . . . . . . . . . . . . . . Shielding Activations . | . . . . . . . . . . . . . . . . Robots Disrupted . | . . . . . . . . . . . . . . . . Combat Hostiles . | . . . . . . . . . . . . . . . . Robots Corrupted 1 | . . . 1 . . . . . . . . . . . . Combat Hostiles 1 | . . . 1 . . . . . . . . . . . . Parts Fried 1 | . . . 1 . . . . . . . . . . . . Impact Corruptions . | . . . . . . . . . . . . . . . . Robots Melted . | . . . . . . . . . . . . . . . . Combat Hostiles . | . . . . . . . . . . . . . . . . Parts Melted . | . . . . . . . . . . . . . . . . Heat Transferred 2866 | . 148 1466 845 185 . . . . . . . 185 37 . . Parts Sabotaged . | . . . . . . . . . . . . . . . . Parts Stolen . | . . . . . . . . . . . . . . . . Parts Stripped . | . . . . . . . . . . . . . . . . Power Chain Reactions . | . . . . . . . . . . . . . . . . Alert | -11 -10 -9 -8 -7 -6 -5 -5 -5 -5 -4 -4 -4 -4 -4 -3 ------- Run | Yrd Mat Mat Mat Fac Fac Fac Upp Upp War Pro Fac Ext Cet Arc Res Maximum Alert Level 1 | . . 1 1 . 1 . . . . . 1 1 . . . Low Security (%) 57 | 100 100 14 45 100 70 100 . . . . . 37 100 100 100 Level 1 42 | . . 85 54 . 29 . . . . . 100 62 . . . Level 2 . | . . . . . . . . . . . . . . . . Level 3 . | . . . . . . . . . . . . . . . . Level 4 . | . . . . . . . . . . . . . . . . Level 5 . | . . . . . . . . . . . . . . . . High Security . | . . . . . . . . . . . . . . . . Max Security . | . . . . . . . . . . . . . . . . Peak Influence 352 | . 100 340 269 165 263 119 . . . . 352 330 108 20 120 Initial 350 | . . 25 120 121 80 104 . . . . 350 156 106 12 . Average 152 | . 27 245 179 132 157 94 . . . . 334 234 79 12 16 Influence Increases 3635 | . 280 788 723 134 371 75 15 15 . 140 320 425 25 28 296 Destroy 0b10 Robot/C 1640 | . 180 440 520 40 160 . . . . . . 220 . 20 60 Destroy 0b10 Robot/NC 180 | . 35 55 30 10 25 10 . . . 5 . 10 . . . Destroy Leader 376 | . 50 136 94 24 34 4 . . . . . 24 . . 10 Allied During Kill 51 | . . . . . . . . . . . . 51 . . . Successful Hack 31 | . . 1 . . . . . . . . 2 20 8 . . Disable Machine 105 | . 15 75 15 . . . . . . . . . . . . Destroy Structure 112 | . . 6 4 . 32 16 . . . . 18 10 2 8 16 Advance Influence 300 | . . . . . . . . . . . 300 . . . . Partial Spotted 180 | . . . . 30 45 15 . . . . . 45 . . 45 Lose Combat Pursuer 660 | . . 75 60 30 75 30 15 15 . 135 . 45 15 . 165 Influence Decreases 3515 | . 220 563 739 238 323 169 85 64 . 60 80 554 185 59 176 Entered New Map 895 | . . 35 165 148 85 109 45 10 . . 30 164 85 19 . Time Decay 1821 | . 200 498 334 90 198 50 40 54 . 45 50 110 30 20 102 Lost Part 334 | . 20 30 90 . . 10 . . . 10 . 50 30 20 74 Lost Ally 165 | . . . . . 40 . . . . 5 . 80 40 . . Purge Threat 300 | . . . 150 . . . . . . . . 150 . . . Squads Dispatched 15 | . 1 1 2 1 3 . . . . . . 3 . . 4 Investigation 3 | . . . . . . . . . . . . 2 . . 1 Extermination 3 | . . . . . 2 . . . . . . . . . 1 Reinforcement 9 | . 1 1 2 1 1 . . . . . . 1 . . 2 Assault . | . . . . . . . . . . . . . . . . Garrison . | . . . . . . . . . . . . . . . . Intercept . | . . . . . . . . . . . . . . . . Searches Triggered . | . . . . . . . . . . . . . . . . Construction Impeded . | . . . . . . . . . . . . . . . . Haulers Reinforced . | . . . . . . . . . . . . . . . . Active Scanning Responses . | . . . . . . . . . . . . . . . . Cargo Convoy Interrupts . | . . . . . . . . . . . . . . . . Stealth | -11 -10 -9 -8 -7 -6 -5 -5 -5 -5 -4 -4 -4 -4 -4 -3 --------- Run | Yrd Mat Mat Mat Fac Fac Fac Upp Upp War Pro Fac Ext Cet Arc Res Distress Signals 12 | . 1 4 3 1 1 . . . . . . . 2 . . Communications Jammed 110 | . . . . . . 8 . . . . . 98 1 . 3 Distress Signals 110 | . . . . . . 8 . . . . . 98 1 . 3 Times Spotted 207 | . 16 34 36 8 15 6 2 1 8 13 . 24 6 4 34 Peak Tracking Total 17 | . 6 4 9 4 5 3 1 1 9 6 . 9 9 3 17 Tactical Retreats 24 | . . 3 4 1 2 2 1 1 . 3 . 3 1 . 3 ECM-based Alert Blocks 3 | . . . . . 3 . . . . . . . . . . Traps | -11 -10 -9 -8 -7 -6 -5 -5 -5 -5 -4 -4 -4 -4 -4 -3 ------- Run | Yrd Mat Mat Mat Fac Fac Fac Upp Upp War Pro Fac Ext Cet Arc Res Traps Triggered 9 | . 4 2 . 1 . . . . . . . 2 . . . Indirectly . | . . . . . . . . . . . . . . . . Trap Hack Attempts . | . . . . . . . . . . . . . . . . Triggered . | . . . . . . . . . . . . . . . . Disarmed . | . . . . . . . . . . . . . . . . Reprogrammed . | . . . . . . . . . . . . . . . . Reused . | . . . . . . . . . . . . . . . . Traps Extracted . | . . . . . . . . . . . . . . . . Installed . | . . . . . . . . . . . . . . . . Triggered . | . . . . . . . . . . . . . . . . Machines | -11 -10 -9 -8 -7 -6 -5 -5 -5 -5 -4 -4 -4 -4 -4 -3 ---------- Run | Yrd Mat Mat Mat Fac Fac Fac Upp Upp War Pro Fac Ext Cet Arc Res Machines Disabled 9 | . 1 5 1 . . . . 1 . . . . 1 . . Max in Single Turn 1 | . 1 1 1 . . . . 1 . . . . . . . Machines Repaired . | . . . . . . . . . . . . . . . . Machines Dismantled . | . . . . . . . . . . . . . . . . Machines Sabotaged . | . . . . . . . . . . . . . . . . Overloaded Fab Kills . | . . . . . . . . . . . . . . . . Hacking | -11 -10 -9 -8 -7 -6 -5 -5 -5 -5 -4 -4 -4 -4 -4 -3 --------- Run | Yrd Mat Mat Mat Fac Fac Fac Upp Upp War Pro Fac Ext Cet Arc Res Machines Accessed 40 | . . 3 2 2 7 . 1 1 6 1 1 11 3 . 2 Terminals 24 | . . 1 2 . 5 . 1 . . 1 . 10 3 . 1 Fabricators 2 | . . . . 1 1 . . . . . . . . . . Repair Stations 2 | . . . . . . . . . . . 1 . . . 1 Recycling Units 1 | . . . . . . . . . . . . 1 . . . Scanalyzers 4 | . . 2 . 1 1 . . . . . . . . . . Garrison Access . | . . . . . . . . . . . . . . . . Total Hacks 83 | . . 7 4 3 13 . 1 1 12 1 2 30 6 . 3 Successful 51 | . . 5 4 1 7 . 1 1 12 1 2 12 4 . 1 Failed 31 | . . 1 . 2 6 . . . . . . 18 2 . 2 Catastrophic 9 | . . . . . 1 . . . . . . 6 1 . 1 Database Lockouts 1 | . . 1 . . . . . . . . . . . . . Manual 9 | . . 1 . 1 3 . . . . . . . 4 . . Terminals 49 | . . 1 4 . 8 . 1 . . 1 . 27 6 . 1 Fabricators 2 | . . . . 1 1 . . . . . . . . . . Repair Stations 4 | . . . . . . . . . . . 2 . . . 2 Recycling Units 3 | . . . . . . . . . . . . 3 . . . Scanalyzers 12 | . . 6 . 2 4 . . . . . . . . . . Garrison Access . | . . . . . . . . . . . . . . . . Terminal Hacks 36 | . . . 4 . 2 . 1 1 12 1 . 10 4 . 1 Record 19 | . . . . . . . 1 1 10 1 . 2 4 . . Prototype ID Bank 1 | . . . . . 1 . . . . . . . . . . Open Door 7 | . . . . . . . . . 2 . . 5 . . . Alert Level 4 | . . . 1 . 1 . . . . . . 1 . . 1 Unreport Threat 2 | . . . 1 . . . . . . . . 1 . . . Investigation Status 1 | . . . 1 . . . . . . . . . . . . Reinforcement Status 1 | . . . 1 . . . . . . . . . . . . Zone Layout 1 | . . . . . . . . . . . . 1 . . . Fabricator Hacks . | . . . . . . . . . . . . . . . . Repair Station Hacks 2 | . . . . . . . . . . . 2 . . . . Scan Component 1 | . . . . . . . . . . . 1 . . . . Repair 1 | . . . . . . . . . . . 1 . . . . Recycling Unit Hacks 2 | . . . . . . . . . . . . 2 . . . Report Inventory 1 | . . . . . . . . . . . . 1 . . . Retrieve Components 1 | . . . . . . . . . . . . 1 . . . Scanalyzer 9 | . . 5 . . 4 . . . . . . . . . . Insert Component 2 | . . 2 . . . . . . . . . . . . . Analyze 2 | . . 2 . . . . . . . . . . . . . Retrieve Study 5 | . . 1 . . 4 . . . . . . . . . . Garrison Access Hacks . | . . . . . . . . . . . . . . . . Unauthorized Hacks 2 | . . . . 1 1 . . . . . . . . . . Terminals . | . . . . . . . . . . . . . . . . Fabricators 2 | . . . . 1 1 . . . . . . . . . . Liberate 2 | . . . . 1 1 . . . . . . . . . . Repair Stations . | . . . . . . . . . . . . . . . . Recycling Units . | . . . . . . . . . . . . . . . . Scanalyzers . | . . . . . . . . . . . . . . . . Garrison Access . | . . . . . . . . . . . . . . . . Data Cores Recovered 1 | . 1 . . . . . . . . . . . . . . Used . | . . . . . . . . . . . . . . . . Hacking Detections 15 | . . 1 . 1 3 . . . . . . 6 2 . 2 Full Trace Events 3 | . . . . . . . . . . . . 2 . . 1 Feedback Events . | . . . . . . . . . . . . . . . . Feedback Blocked . | . . . . . . . . . . . . . . . . Robot Schematics Acquired . | . . . . . . . . . . . . . . . . Robots Built . | . . . . . . . . . . . . . . . . Authchips . | . . . . . . . . . . . . . . . . Time . | . . . . . . . . . . . . . . . . Total Robot Build Rating . | . . . . . . . . . . . . . . . . Part Schematics Acquired 2 | . . 2 . . . . . . . . . . . . . Parts Built . | . . . . . . . . . . . . . . . . Authchips . | . . . . . . . . . . . . . . . . Time . | . . . . . . . . . . . . . . . . Total Part Build Rating . | . . . . . . . . . . . . . . . . Part Studies Acquired 5 | . . 1 . . 4 . . . . . . . . . . Parts Repaired 1 | . . . . . . . . . . . 1 . . . . Time 38 | . . . . . . . . . . . 38 . . . . Parts Recycled . | . . . . . . . . . . . . . . . . Recycled Matter . | . . . . . . . . . . . . . . . . Retrieved Matter . | . . . . . . . . . . . . . . . . Retrieved Components 2 | . . . . . . . . . . . . 2 . . . Parts Scanalyzed 2 | . . 2 . . . . . . . . . . . . . Part Schematics Acquired 2 | . . 2 . . . . . . . . . . . . . Parts Damaged . | . . . . . . . . . . . . . . . . Bothacking | -11 -10 -9 -8 -7 -6 -5 -5 -5 -5 -4 -4 -4 -4 -4 -3 ------------ Run | Yrd Mat Mat Mat Fac Fac Fac Upp Upp War Pro Fac Ext Cet Arc Res Used RIF Installer . | . . . . . . . . . . . . . . . . Robots Hacked . | . . . . . . . . . . . . . . . . Non-combat . | . . . . . . . . . . . . . . . . Combat . | . . . . . . . . . . . . . . . . Robot Hacks Applied . | . . . . . . . . . . . . . . . . Relay Couplers Released . | . . . . . . . . . . . . . . . . Fabnet Peak Effective % . | . . . . . . . . . . . . . . . . Robots Rewired 5 | . . . . . . . . . 5 . . . . . . Allies Hacked . | . . . . . . . . . . . . . . . . Hacks Repelled 1 | . . . . . . . . . 1 . . . . . . Allies | -11 -10 -9 -8 -7 -6 -5 -5 -5 -5 -4 -4 -4 -4 -4 -3 -------- Run | Yrd Mat Mat Mat Fac Fac Fac Upp Upp War Pro Fac Ext Cet Arc Res Total Allies 13 | . . . . . 2 . . . 5 . . 5 1 . . Largest Group 5 | . . . . . 2 . . . 5 1 . 5 1 . . Highest-Rated Group 319 | . . . . . 82 . . . 263 64 . 319 149 . . Highest-Rated Ally 159 | . . . . . 41 . . . 68 64 . 159 149 . . Total Orders . | . . . . . . . . . . . . . . . . Ally Attacks 68 | . . . . . 20 . . . 2 . . 42 4 . . Total Damage 2050 | . . . . . 526 . . . 65 . . 1354 105 . . Kills 12 | . . . . . 7 . . . . . . 5 . . . Allies Corrupted 1 | . . . . . . . . . 1 . . . . . . Allies Melted . | . . . . . . . . . . . . . . . . Intel | -11 -10 -9 -8 -7 -6 -5 -5 -5 -5 -4 -4 -4 -4 -4 -3 ------- Run | Yrd Mat Mat Mat Fac Fac Fac Upp Upp War Pro Fac Ext Cet Arc Res Active Infowar (turns) 1927 | . . . 162 1 15 104 92 244 360 365 104 237 72 43 128 Structural 162 | . . . 162 . . . . . . . . . . . . Cloaking 50 | . . . . . . . . . . . . . . . 50 Jamming 1749 | . . . . . . 104 92 244 360 365 104 237 72 43 128 ECM 17 | . . . . 1 15 . . . . . . . . . 1 Robot Analysis Total . | . . . . . . . . . . . . . . . . Derelict Logs Recovered 4 | . . . . . . . 2 1 . 1 . . . . . Drone Launches . | . . . . . . . . . . . . . . . . Drone Recoveries . | . . . . . . . . . . . . . . . . Exploration | -11 -10 -9 -8 -7 -6 -5 -5 -5 -5 -4 -4 -4 -4 -4 -3 ------------- Run | Yrd Mat Mat Mat Fac Fac Fac Upp Upp War Pro Fac Ext Cet Arc Res Turns Passed 5580 | 61 930 1329 747 191 417 104 92 244 360 365 104 237 72 43 284 Spaces Moved 8187 | 44 650 879 461 463 1049 233 330 815 940 971 143 538 227 57 387 Core 51 | 12 5 . . . . . . . . . . . . . 34 Treads 443 | . 225 30 188 . . . . . . . . . . . . Legs 655 | 32 46 474 103 . . . . . . . . . . . . Wheels 749 | . 374 375 . . . . . . . . . . . . . Hover 99 | . . . . . . . . . . . . . . . 99 Flight 6190 | . . . 170 463 1049 233 330 815 940 971 143 538 227 57 254 Fastest Speed 15 | 50 100 90 29 20 17 20 20 17 23 17 24 15 21 32 30 Average Speed 47 | 100 123 112 105 28 24 22 22 22 23 23 24 22 26 32 45 Slowest Speed 320 | 120 300 240 320 29 25 23 23 23 23 24 24 24 32 32 110 Overloaded Moves 115 | . . . . 2 9 48 7 6 . 21 . 22 . . . Propulsion Burnouts . | . . . . . . . . . . . . . . . . Robots Hopped 19 | . . . . 2 2 1 . . 2 . . 8 1 . 3 Potential Cave-ins 3 | . . . . . . . . . . 3 . . . . . Cave-ins Triggered . | . . . . . . . . . . . . . . . . Exploration Rate (%) 50 | 4 92 71 46 15 33 9 58 81 94 89 4 69 65 65 14 Regions Visited 15 Branch Regions 7 Pre-discovered Areas 1 | . . . . . . . . . . 1 . . . . . Known Exits Taken 2 | . . . . . . . . . . 1 . . . 1 . Unknown Exits Taken 13 | 1 1 1 1 1 1 1 1 1 1 . 1 1 1 . . Scrap Searched 9 | . . . . . . . 3 3 . 3 . . . . . Spaces Dug 143 | . . 2 . . 32 8 4 20 . 50 9 5 1 4 8 Terrain Destroyed 145 | . . 3 1 . 32 8 4 20 . 50 9 5 1 4 8 Melee 141 | . . . . . 32 8 4 20 . 50 9 5 1 4 8 Projectile 4 | . . 3 1 . . . . . . . . . . . . AOE . | . . . . . . . . . . . . . . . . Terrain Rammed . | . . . . . . . . . . . . . . . . Walls Destroyed . | . . . . . . . . . . . . . . . . Machines Disabled . | . . . . . . . . . . . . . . . . Actions | -11 -10 -9 -8 -7 -6 -5 -5 -5 -5 -4 -4 -4 -4 -4 -3 --------- Run | Yrd Mat Mat Mat Fac Fac Fac Upp Upp War Pro Fac Ext Cet Arc Res Total 9167 | 58 728 1059 599 506 1142 257 338 838 1069 1029 197 592 234 65 456 Wait 228 | 3 17 17 11 . 7 2 . . 101 . 38 10 2 . 20 Move 8134 | 43 649 878 460 458 1043 230 329 814 936 970 142 521 224 56 381 Hop 18 | . . . . 2 2 1 . . 1 . . 8 1 . 3 Pick Up 83 | 8 10 16 20 2 9 . 3 1 2 3 2 2 . . 5 Fast Attach 56 | 4 7 11 6 1 5 . . . 4 . 3 6 . . 9 Attach 37 | . 6 1 11 1 2 4 1 . . 2 . 1 2 . 6 Detach 8 | . . . . . . 2 . . . . . . 2 . 4 Swap 52 | . 5 13 9 7 9 . . . 5 1 1 2 . . . Drop 93 | . 6 29 14 7 16 . . 1 7 1 2 5 . . 5 Fire 204 | . 28 94 64 5 . . . . 7 . . 4 2 . . Melee 234 | . . . 4 8 48 18 5 22 6 52 9 29 1 9 23 Ram . | . . . . . . . . . . . . . . . . Kick . | . . . . . . . . . . . . . . . . Crush . | . . . . . . . . . . . . . . . . Escape Stasis 20 | . . . . 15 1 . . . . . . 4 . . . Rewire . | . . . . . . . . . . . . . . . . Trap . | . . . . . . . . . . . . . . . . Miscellaneous . | . . . . . . . . . . . . . . . . Route ------- -11/Scrapyard -10/Materials (discovered 4 exits: *Mat x3 / [*Min]) -9/Materials (discovered 3 exits: *Mat x2 / [*Min]) -8/Materials -7/Factory -6/Factory (discovered 2 exits: *Fac x2) -5/Factory -5/Upper Caves -5/Upper Caves (discovered 2 exits: Fac / *War) -5/Warlord -4/Proximity Caves -4/Factory (discovered 3 exits: Res / [*Upp] / *Ext) -4/Extension (discovered 2 exits: *Res / *Cet) -4/Cetus -4/Archives -3/Research History --------- Turn | Location | Event 7 | -11/Scrapyard | Discovered new exit (range 16) 62 | -11/Scrapyard | Entered Materials 295 | -10/Materials | Discovered new exit (range 8) 312 | -10/Materials | Build established: Mutant 380 | -10/Materials | Discovered new exit (range 16) 508 | -10/Materials | Discovered new exit (range 13) 738 | -10/Materials | Discovered new exit (range 6) 992 | -10/Materials | Entered another Materials area 992 | -9/Materials | Evolved 2 slots: Propulsion x1, Utility x1 1185 | -9/Materials | Discovered new exit (range 16) 1348 | -9/Materials | Central database locked down 1496 | -9/Materials | Discovered new exit (range 14) 1881 | -9/Materials | Discovered new exit (range 16) 2321 | -9/Materials | Entered another Materials area 2321 | -8/Materials | Evolved 2 slots: Propulsion x1, Utility x1 2542 | -8/Materials | Destroyed 9 combat bots 2886 | -8/Materials | Lost 3 parts (1p1u1w) 2967 | -8/Materials | Destroyed 7 combat bots 2996 | -8/Materials | Lost 5 parts (2n1u2w) 3062 | -8/Materials | Discovered new exit (range 9) 3068 | -8/Materials | Entered Factory 3068 | -7/Factory | Evolved 2 slots: Power x1, Utility x1 3250 | -7/Factory | Discovered new exit (range 12) 3259 | -7/Factory | Entered another Factory area 3259 | -6/Factory | Evolved 2 slots: Propulsion x1, Utility x1 3615 | -6/Factory | Discovered new exit (range 11) 3671 | -6/Factory | Discovered new exit (range 5) 3676 | -6/Factory | Entered another Factory area 3676 | -5/Factory | Evolved 2 slots: Utility x2 3778 | -5/Factory | Discovered new exit (range 9) 3780 | -5/Factory | Entered Upper Caves 3786 | -5/Upper Caves | Learned location of 1 exit from Factory 3789 | -5/Upper Caves | Build established: Scientist-Sprinter 3837 | -5/Upper Caves | Discovered new exit (range 15) 3854 | -5/Upper Caves | Learned location of 1 exit from Upper Caves 3872 | -5/Upper Caves | Entered another Upper Caves area 3873 | -5/Upper Caves | Identified exit to Factory 3919 | -5/Upper Caves | Found Alien Artifact 3925 | -5/Upper Caves | Attracted the attention of an 0b10 outpost 3941 | -5/Upper Caves | Learned Factory trap positions 3958 | -5/Upper Caves | Discovered new exit (range 9) 4116 | -5/Upper Caves | Entered Warlord 4129 | -5/Warlord | System corruption cleaned by Quarantine Array 4240 | -5/Warlord | Visited the Vortex Lab 4244 | -5/Warlord | Found Prototype Energy Cannon 4244 | -5/Warlord | Identified Vortex Driver 4250 | -5/Warlord | Warlord's base attacked by MAIN.C 4263 | -5/Warlord | Learned Testing emergency access door positions 4263 | -5/Warlord | Learned Quarantine stockpile data 4263 | -5/Warlord | Learned 4 Armory zone layouts 4263 | -5/Warlord | Learned 4 Armory zone layouts 4263 | -5/Warlord | Learned 4 Research zone layouts 4263 | -5/Warlord | Learned Quarantine security intel 4263 | -5/Warlord | Learned Armory recycling unit intel 4284 | -5/Warlord | Met Warlord 4436 | -5/Warlord | Opened side exit 4441 | -5/Warlord | Discovered new exit (range 9) 4472 | -5/Warlord | P-80 Master assimilated allied Beamer 6a 4474 | -5/Warlord | P-80 Master assimilated allied Slayer 6a 4476 | -5/Warlord | Entered Proximity Caves 4476 | -4/Proximity Caves | Accompanied by 1 ally 4556 | -4/Proximity Caves | Spotter reported a threat 4604 | -4/Proximity Caves | Spotted B-86 Titan 4633 | -4/Proximity Caves | Learned location of Quarantine (-3) 4639 | -4/Proximity Caves | Spotter reported a threat 4811 | -4/Proximity Caves | Discovered exit to Factory (range 9) 4841 | -4/Proximity Caves | Entered Factory 4841 | -4/Factory | Evolved 2 slots: Propulsion x1, Weapon x1 4842 | -4/Factory | Identified exit to Research 4843 | -4/Factory | Loaded intel: 104 trap records 4885 | -4/Factory | Repaired Surge Thruster+ 4920 | -4/Factory | Discovered new exit (range 8) 4936 | -4/Factory | Discovered new exit (range 11) 4945 | -4/Factory | Entered Extension 4981 | -4/Extension | Rescued A7 5042 | -4/Extension | Rescued a captive Derelict 5047 | -4/Extension | Rescued a captive Derelict 5049 | -4/Extension | Rescued a captive Derelict 5056 | -4/Extension | Rescued a captive Derelict 5061 | -4/Extension | Spotted B-86 Titan 5062 | -4/Extension | Spotted B-86 Titan 5082 | -4/Extension | Rescued a captive Derelict 5083 | -4/Extension | Rescued a captive Derelict 5170 | -4/Extension | Discovered exit to Research (range 10) 5170 | -4/Extension | Discovered new exit (range 6) 5182 | -4/Extension | Entered Cetus 5182 | -4/Cetus | Accompanied by 1 ally (A7) 5187 | -4/Cetus | Acquired a Cetus Manufacturing Module code from A7 5189 | -4/Cetus | Spotted Cetus Guard 5189 | -4/Cetus | Spotted Cetus Guard 5189 | -4/Cetus | Spotted Cetus Guard 5195 | -4/Cetus | Spotted Cetus Guard 5209 | -4/Cetus | Lost 3 parts (1p1u1w) 5209 | -4/Cetus | Started Cetus Manufacturing Module 5219 | -4/Cetus | Extracted ID and sensor layout for unrecognized location from A7's data core 5232 | -4/Cetus | Discovered new exit (range 16) 5234 | -4/Cetus | Manufactured an Enhanced Grunt 5237 | -4/Cetus | Cetus Manufacturing Module disabled 5237 | -4/Cetus | Spotted Cetus Guard 5254 | -4/Cetus | Entered Archives 5282 | -4/Archives | Unable to access archive contents 5284 | -4/Archives | Discovered exit to Research (range 14) 5297 | -4/Archives | Entered Research 5297 | -3/Research | Evolved 2 slots: Propulsion x1, Utility x1 5314 | -3/Research | Lost 5 parts (3n2u) 5335 | -3/Research | Found Prototype Launcher 5335 | -3/Research | Identified Hellfire Missile Launcher 5484 | -3/Research | Core integrity fell below 50% 5487 | -3/Research | Lost 8 parts (1p3n3u1w) 5496 | -3/Research | Core integrity fell below 20% 5523 | -3/Research | Lost 5 parts (2n2u1w) 5556 | -3/Research | Spotted B-86 Titan 5581 | -3/Research | Destroyed by H-77 Assassin with Coil Gun Last Messages --------------- 05535_ R-10 Processor collects Prc. Matter Filter. 05550_ O-32 Director: "IFF HANDSHAKE FAILED. SECURING TERMINAL." 05551_ Acquired Force Lance. 05551_ O-32 Director uses terminal to summon reinforcements. 05551_ ALERT: Hostiles spotted, dispatching reinforcements to Terminal R011. 05551_ O-32 Director locks terminal. 05552_ Dropped Hellfire Missile Launcher. 05558_ Slug penetrates Wall. 05558_ Penetrated by Slug. 05567_ Door malfunctions. 05567_ Imp. Surge Thruster destroyed. 05568_ Lgt. Ion Engine destroyed. 05573_ Slug penetrates Wall. 05575_ U-05 Engineer repairs door. 05576_ Slug penetrates S-43 Plague. 05581_ Slug penetrates Graviton Restrictor. Map ----- +----------------------------------------------------+ | ????????# #???############ #?????????????????????? | | ????????# #????????????????#?????????????????????? | | ????????# #??????????????????????????????????????? | | ????????# #??????????????????????????????????????? | | ????????# #??????????????????????????????????????? | | ????????# #??????????????????????????????????????? | | ????????# #??????????????????????????????????????? | | ????????# #??????????#####???????????????????????? | | ????????# ########### #???????????????????????? | | ????????# #???????????????????????? | | ????????# #???????????????????????? | | ????????# #??????T#???????????????? | | ????????# #???? #???????????????? | | ????????# "" "" #??? #????????????????? | | ???###### ""F"" ### ###??????????????? | | """ ??????????????? | | ?????????????? | | = ?????????????? | | u ?????????????? | | /############# ###/###### #????????????????? | | ???? ! # ??# #! h #??????????????????????? | | ?????? / ! # # #??????????????????????? | | ?????????? / # #??????????????????????? | | ??????????? # # p""" #??????????????????????? | | ????????? # + """ #??????????????????????? | | ???????? ?# # """ @#??????????????????????? | | ???????# ??###### """ #??????????????????????? | | ???????#!!????????# """ #??????????????????????? | | ???????#!/????????# pss #??????????????????????? | | ????????!?????????# s !#??????????????????????? | | ??????????????????# ss #??????????????????????? | | ??????????????????#########??????????????????????? | | ?????????????????????????????????????????????????? | | ?????????????????????????????????????????????????? | | ?????????????????????????????????????????????????? | | ?????????????????????????????????????????????????? | | ?????????????????????????????????????????????????? | | ?????????????????????????????????????????????????? | | ?????????????????????????????????????????????????? | | ?????????????????????????????????????????????????? | | ?????????????????????????????????????????????????? | | ?????????????????????????????????????????????????? | | ?????????????????????????????????????????????????? | | ?????????????????????????????????????????????????? | | ?????????????????????????????????????????????????? | | ?????????????????????????????????????????????????? | | ?????????????????????????????????????????????????? | | ?????????????????????????????????????????????????? | | ?????????????????????????????????????????????????? | | ?????????????????????????????????????????????????? | +----------------------------------------------------+ Best States ------------- Heat Dissipation 70 Energy Generation 34 Energy Capacity 730 Matter Stores 300 Matter Capacity 300 Sight Range 16 Terrain Scan Density 10 ECM Strength 2 Jamming Range 14 Cloak Strength 3 Additional Mass Support 9 Base Temperature (-) 200 EM Shielding 2 Armor Coverage 225 Resistance: TH 30 Propulsion Shielding 66 Evasion (%) 77 Recoil Reduction 4 Offensive Hacking 12 Defensive Hacking 10 Item Schematics ----------------- Imp. Flight Unit | -9/Materials | Scanalyzed Imp. Medium Laser | -9/Materials | Scanalyzed Robot Schematics ------------------ None Fabricated ------------ Nothing Repaired ---------- Surge Thruster | 11% | -4/Factory Studied --------- Lgt. Cannon | -9/Materials | Hacked Power Sword | -6/Factory | Hacked Surge Thruster | -6/Factory | Hacked Imp. Deuterium Engine | -6/Factory | Hacked Lgt. Angular Momentum Engine | -6/Factory | Hacked Alien Tech Used ----------------- None Achievements -------------- Ghost 'Em Hackathon Heavy Suspicion Look Less Dangerous Next Time No Room For Error Project G-00 That Tickles Challenges ------------ None Game ------ Seed CannonPulseComputer Manual? 0 Play Time 02:29:24 Cumulative 279.5 hours Start 2025.11.11 @ 11:43:10 End 2025.11.17 @ 15:18:52 Sessions 3 Manual Loads 0 Difficulty Rogue Special Mode None Game No. 442 Rogue 442 Adventurer 0 Explorer 0 Win Type - Total 1 Types 1/0/0/0/0/0/0/0/0/0 Lore% 65 Gallery% 62 Achievement% 29 Wizard Run 0 Options --------- Layout 1 ASCII 0 Keyboard 0 Movement Mouse Keybinds 0 Fullscreen 2 Font 24/Smallcaps Map View 50x35 Zoom Use 0% Tactical HUD 1 Map Filters NONE Filters NONE Steam 1 RUN: 2131d0e2-c16d-4a43-9505-07e6de4fab9e